[Event "Early-Titled-Tuesday-Blitz-June-18-2024"]
[Site "Chess.com"]
[Date "2024.06.18"]
[Round "10"]
[White "Kostukov_Alex"]
[Black "Andrey-Ivanov2011"]
[Result "1-0"]
[WhiteElo "2308"]
[BlackElo "2079"]
[TimeControl "180+1"]
[EndTime "9:58:09 PDT"]
[Termination "Kostukov_Alex won on time"]

1. g3 {[%clk 0:02:59.7]} 1... d5 {[%clk 0:02:59.5]} 2. Bg2 {[%clk 0:02:56.4]}
2... c5 {[%clk 0:02:58.6]} 3. d3 {[%clk 0:02:56.2]} 3... Nc6 {[%clk 0:02:58.6]}
4. e4 {[%clk 0:02:56.8]} 4... e6 {[%clk 0:02:57.5]} 5. Qe2 {[%clk 0:02:56.1]}
5... Be7 {[%clk 0:02:55.7]} 6. Nf3 {[%clk 0:02:54.1]} 6... Nf6 {[%clk
0:02:55.6]} 7. O-O {[%clk 0:02:53.2]} 7... O-O {[%clk 0:02:55.5]} 8. e5 {[%clk
0:02:53.6]} 8... Nd7 {[%clk 0:02:55.1]} 9. c4 {[%clk 0:02:54.2]} 9... dxc4
{[%clk 0:02:54.6]} 10. dxc4 {[%clk 0:02:54.3]} 10... Qc7 {[%clk 0:02:55.2]} 11.
Bf4 {[%clk 0:02:52.9]} 11... b6 {[%clk 0:02:52.9]} 12. Nc3 {[%clk 0:02:51.7]}
12... Bb7 {[%clk 0:02:51.5]} 13. Nb5 {[%clk 0:02:49.3]} 13... Qc8 {[%clk
0:02:51.9]} 14. Rfd1 {[%clk 0:02:49.3]} 14... a6 {[%clk 0:02:48.2]} 15. Nd6
{[%clk 0:02:49]} 15... Bxd6 {[%clk 0:02:48.1]} 16. Rxd6 {[%clk 0:02:46.2]} 16...
Rd8 {[%clk 0:02:35.9]} 17. Bg5 {[%clk 0:02:36.4]} 17... Re8 {[%clk 0:02:31.9]}
18. Rad1 {[%clk 0:02:35.6]} 18... Nf8 {[%clk 0:02:29.3]} 19. h4 {[%clk
0:02:32.6]} 19... Ng6 {[%clk 0:02:26.8]} 20. h5 {[%clk 0:02:30.4]} 20... Nge7
{[%clk 0:02:24.1]} 21. Qd3 {[%clk 0:02:09.7]} 21... Nf5 {[%clk 0:02:20.5]} 22.
Rd7 {[%clk 0:02:09.5]} 22... Nb4 {[%clk 0:02:13.9]} 23. Qb1 {[%clk 0:02:05.8]}
23... Bc6 {[%clk 0:02:12.9]} 24. Rd8 {[%clk 0:02:01.7]} 24... Qb7 {[%clk
0:02:08.1]} 25. Rxe8+ {[%clk 0:01:55]} 25... Rxe8 {[%clk 0:02:09]} 26. Ne1
{[%clk 0:01:54]} 26... Bxg2 {[%clk 0:02:02]} 27. Nxg2 {[%clk 0:01:54.9]} 27...
h6 {[%clk 0:02:01.6]} 28. Bf4 {[%clk 0:01:48.6]} 28... Nd4 {[%clk 0:02:01.1]}
29. Be3 {[%clk 0:01:27.5]} 29... Nbc6 {[%clk 0:01:58.8]} 30. b4 {[%clk
0:01:18.8]} 30... Nf3+ {[%clk 0:01:52.1]} 31. Kf1 {[%clk 0:01:14.3]} 31... Nxb4
{[%clk 0:01:50]} 32. a3 {[%clk 0:01:09.7]} 32... Nc6 {[%clk 0:01:48.5]} 33. Qe4
{[%clk 0:01:08.6]} 33... Nfxe5 {[%clk 0:01:41.6]} 34. Bf4 {[%clk 0:00:57.8]}
34... Ng4 {[%clk 0:01:11.1]} 35. Rd6 {[%clk 0:00:53]} 35... Rc8 {[%clk
0:01:07.3]} 36. Ne3 {[%clk 0:00:44.4]} 36... Nxe3+ {[%clk 0:01:01.3]} 37. Bxe3
{[%clk 0:00:42.7]} 37... Qc7 {[%clk 0:00:56.2]} 38. Bf4 {[%clk 0:00:37.3]} 38...
Qb7 {[%clk 0:00:51.4]} 39. g4 {[%clk 0:00:32.8]} 39... b5 {[%clk 0:00:25.9]} 40.
g5 {[%clk 0:00:24.3]} 40... hxg5 {[%clk 0:00:23.4]} 41. Bxg5 {[%clk 0:00:23.4]}
41... bxc4 {[%clk 0:00:18.9]} 42. h6 {[%clk 0:00:22.7]} 42... Na5 {[%clk
0:00:12]} 43. h7+ {[%clk 0:00:12.5]} 43... Kh8 {[%clk 0:00:10.8]} 44. Qxb7
{[%clk 0:00:11]} 44... Nxb7 {[%clk 0:00:11.7]} 45. Rd7 {[%clk 0:00:11.4]} 45...
Na5 {[%clk 0:00:11.2]} 46. Rxf7 {[%clk 0:00:11.4]} 46... Nb3 {[%clk 0:00:11.9]}
47. Re7 {[%clk 0:00:09.9]} 47... Kxh7 {[%clk 0:00:08.4]} 48. Bf6 {[%clk
0:00:09.6]} 48... Kg6 {[%clk 0:00:08.8]} 49. Bxg7 {[%clk 0:00:09.6]} 49... c3
{[%clk 0:00:09.4]} 50. Bxc3 {[%clk 0:00:09.3]} 50... Kf5 {[%clk 0:00:07.8]} 51.
Ke2 {[%clk 0:00:08.6]} 51... Rc6 {[%clk 0:00:05.9]} 52. Kd3 {[%clk 0:00:08]}
52... c4+ {[%clk 0:00:05.1]} 53. Kc2 {[%clk 0:00:07.7]} 1-0

[Event "Early-Titled-Tuesday-Blitz-June-18-2024"]
[Site "Chess.com"]
[Date "2024.06.18"]
[Round "10"]
[White "CrimeFightingSpider07"]
[Black "EvgenyBurmakin"]
[Result "1/2-1/2"]
[WhiteElo "2532"]
[BlackElo "2407"]
[TimeControl "180+1"]
[EndTime "9:58:10 PDT"]
[Termination "Game drawn by repetition"]

1. d4 {[%clk 0:03:00.9]} 1... f5 {[%clk 0:02:59.8]} 2. Nf3 {[%clk 0:03:00.4]}
2... Nf6 {[%clk 0:02:59.9]} 3. g3 {[%clk 0:03:00.9]} 3... g6 {[%clk 0:03:00]} 4.
Bg2 {[%clk 0:03:01.3]} 4... Bg7 {[%clk 0:03:00.6]} 5. c4 {[%clk 0:02:58.1]} 5...
O-O {[%clk 0:03:00.9]} 6. Nc3 {[%clk 0:02:58.7]} 6... d6 {[%clk 0:03:01.5]} 7.
O-O {[%clk 0:02:59.3]} 7... Kh8 {[%clk 0:03:01.8]} 8. Re1 {[%clk 0:02:59.8]}
8... c6 {[%clk 0:03:02.2]} 9. e4 {[%clk 0:02:58]} 9... fxe4 {[%clk 0:03:02.4]}
10. Nxe4 {[%clk 0:02:58.9]} 10... Nxe4 {[%clk 0:02:59]} 11. Rxe4 {[%clk
0:02:59.8]} 11... Bf5 {[%clk 0:02:59.4]} 12. Re1 {[%clk 0:02:59.9]} 12... Nd7
{[%clk 0:02:59.1]} 13. Bg5 {[%clk 0:02:59.5]} 13... Nf6 {[%clk 0:02:53.8]} 14.
Nh4 {[%clk 0:02:59.2]} 14... Qd7 {[%clk 0:02:45.5]} 15. Nxf5 {[%clk 0:02:58.7]}
15... Qxf5 {[%clk 0:02:46.1]} 16. Be3 {[%clk 0:02:57.3]} 16... Ng4 {[%clk
0:02:30.9]} 17. Qe2 {[%clk 0:02:56.8]} 17... e5 {[%clk 0:02:28.3]} 18. d5 {[%clk
0:02:43]} 18... c5 {[%clk 0:02:16.5]} 19. Bh3 {[%clk 0:02:16]} 19... h5 {[%clk
0:02:10.5]} 20. Rf1 {[%clk 0:02:05.6]} 20... Qe4 {[%clk 0:01:47.3]} 21. Bg2
{[%clk 0:01:34.3]} 21... Qf5 {[%clk 0:01:44.4]} 22. Rae1 {[%clk 0:01:29.5]}
22... Rae8 {[%clk 0:01:29.8]} 23. Bh3 {[%clk 0:01:01.6]} 23... Qf3 {[%clk
0:01:10.3]} 24. Qxf3 {[%clk 0:00:57]} 24... Rxf3 {[%clk 0:01:11.2]} 25. Bg2
{[%clk 0:00:57.1]} 25... Nxe3 {[%clk 0:00:52.2]} 26. Bxf3 {[%clk 0:00:50.5]}
26... Nxf1 {[%clk 0:00:52.2]} 27. Kxf1 {[%clk 0:00:51.2]} 27... Rf8 {[%clk
0:00:50.8]} 28. Be4 {[%clk 0:00:51.1]} 28... Kh7 {[%clk 0:00:49.8]} 29. Kg2
{[%clk 0:00:46.1]} 29... Rf7 {[%clk 0:00:49.7]} 30. b3 {[%clk 0:00:46.2]} 30...
Bh6 {[%clk 0:00:49.4]} 31. Rf1 {[%clk 0:00:44.9]} 31... Bd2 {[%clk 0:00:45.6]}
32. Bb1 {[%clk 0:00:43.7]} 32... Bc3 {[%clk 0:00:44.8]} 33. f4 {[%clk 0:00:43]}
33... exf4 {[%clk 0:00:38.4]} 34. gxf4 {[%clk 0:00:43.9]} 34... Kh6 {[%clk
0:00:34]} 35. Rf3 {[%clk 0:00:41.5]} 35... Bd4 {[%clk 0:00:33.3]} 36. f5 {[%clk
0:00:40.8]} 36... gxf5 {[%clk 0:00:28.3]} 37. Bxf5 {[%clk 0:00:39.7]} 37... Kg5
{[%clk 0:00:22.9]} 38. Be6 {[%clk 0:00:39.5]} 38... Rxf3 {[%clk 0:00:22.5]} 39.
Kxf3 {[%clk 0:00:39.7]} 39... b6 {[%clk 0:00:21.9]} 40. h3 {[%clk 0:00:39.4]}
40... Be5 {[%clk 0:00:22.2]} 41. Ke4 {[%clk 0:00:38.8]} 41... Kh4 {[%clk
0:00:18.2]} 42. Bf7 {[%clk 0:00:25.9]} 42... Kxh3 {[%clk 0:00:16.2]} 43. Bxh5
{[%clk 0:00:24.7]} 43... Kh4 {[%clk 0:00:16.5]} 44. Bf7 {[%clk 0:00:24.4]} 44...
Kg5 {[%clk 0:00:17.1]} 45. Be6 {[%clk 0:00:24.8]} 45... Bd4 {[%clk 0:00:16.5]}
46. b4 {[%clk 0:00:23.6]} 46... Be5 {[%clk 0:00:15.4]} 47. b5 {[%clk 0:00:22.6]}
47... Bd4 {[%clk 0:00:15.5]} 48. Kf3 {[%clk 0:00:22.5]} 48... Be5 {[%clk
0:00:15.2]} 49. Bg4 {[%clk 0:00:22.3]} 49... Bd4 {[%clk 0:00:15.6]} 50. Bh3
{[%clk 0:00:22.4]} 50... Be5 {[%clk 0:00:16.5]} 51. Bc8 {[%clk 0:00:22.4]} 51...
Bd4 {[%clk 0:00:17.4]} 52. Ke4 {[%clk 0:00:22]} 52... Be5 {[%clk 0:00:18.3]} 53.
Kd3 {[%clk 0:00:22]} 53... Bd4 {[%clk 0:00:18.3]} 54. a4 {[%clk 0:00:22]} 54...
Be5 {[%clk 0:00:18.8]} 55. Ke4 {[%clk 0:00:19.9]} 55... Bd4 {[%clk 0:00:19]} 56.
Kd3 {[%clk 0:00:18.8]} 56... Be5 {[%clk 0:00:19.6]} 57. Kc2 {[%clk 0:00:19.5]}
57... Kf4 {[%clk 0:00:18.1]} 58. Kb3 {[%clk 0:00:20.4]} 58... Ke3 {[%clk
0:00:17.7]} 59. Bb7 {[%clk 0:00:20.3]} 59... Kd3 {[%clk 0:00:17.6]} 60. Ba6
{[%clk 0:00:21.2]} 60... Bd4 {[%clk 0:00:17.7]} 61. Bb7 {[%clk 0:00:22.1]} 61...
Be5 {[%clk 0:00:18.3]} 62. Ba6 {[%clk 0:00:23]} 62... Bd4 {[%clk 0:00:18.9]} 63.
Bb7 {[%clk 0:00:23.9]} 63... Be5 {[%clk 0:00:19.6]} 1/2-1/2

[Event "Early-Titled-Tuesday-Blitz-June-18-2024"]
[Site "Chess.com"]
[Date "2024.06.18"]
[Round "10"]
[White "ImportedItalianMaple"]
[Black "harkerchess"]
[Result "1-0"]
[WhiteElo "2524"]
[BlackElo "2383"]
[TimeControl "180+1"]
[EndTime "9:58:11 PDT"]
[Termination "ImportedItalianMaple won by checkmate"]

1. e4 {[%clk 0:03:00.9]} 1... e5 {[%clk 0:02:59.9]} 2. Nc3 {[%clk 0:03:00.5]}
2... Nf6 {[%clk 0:02:58.7]} 3. Bc4 {[%clk 0:03:00.6]} 3... Nxe4 {[%clk
0:02:56.6]} 4. Qh5 {[%clk 0:03:00.6]} 4... Nd6 {[%clk 0:02:50.9]} 5. Qxe5+
{[%clk 0:03:00.8]} 5... Qe7 {[%clk 0:02:46.2]} 6. Qxe7+ {[%clk 0:03:00.7]} 6...
Bxe7 {[%clk 0:02:47.1]} 7. Be2 {[%clk 0:02:59.9]} 7... O-O {[%clk 0:02:45.2]} 8.
d4 {[%clk 0:02:58.1]} 8... Nf5 {[%clk 0:02:40.4]} 9. Nd5 {[%clk 0:02:53.4]} 9...
Bd8 {[%clk 0:02:36.7]} 10. c3 {[%clk 0:02:51.5]} 10... c6 {[%clk 0:02:36.3]} 11.
Nf4 {[%clk 0:02:43.2]} 11... d5 {[%clk 0:02:36.4]} 12. Nf3 {[%clk 0:02:39.7]}
12... Nd7 {[%clk 0:02:35.1]} 13. h4 {[%clk 0:02:38.3]} 13... Nf6 {[%clk
0:02:33.6]} 14. Ne5 {[%clk 0:02:36.5]} 14... Ne4 {[%clk 0:02:28.9]} 15. h5
{[%clk 0:02:27.3]} 15... h6 {[%clk 0:02:26.3]} 16. g4 {[%clk 0:02:12.1]} 16...
Nfd6 {[%clk 0:02:22.2]} 17. Rg1 {[%clk 0:02:07.4]} 17... Ng5 {[%clk 0:02:20.7]}
18. Be3 {[%clk 0:02:01.7]} 18... Bc7 {[%clk 0:02:16.9]} 19. O-O-O {[%clk
0:01:56.6]} 19... Nde4 {[%clk 0:02:15]} 20. f3 {[%clk 0:01:50.8]} 20... Nf6
{[%clk 0:02:06.2]} 21. Rdf1 {[%clk 0:01:48.8]} 21... Re8 {[%clk 0:02:02.7]} 22.
Nfd3 {[%clk 0:01:46.8]} 22... Nd7 {[%clk 0:01:40.8]} 23. f4 {[%clk 0:01:37.5]}
23... Ne4 {[%clk 0:01:39.5]} 24. Bf3 {[%clk 0:01:29.4]} 24... f6 {[%clk
0:01:31.3]} 25. Nxd7 {[%clk 0:01:03]} 25... Bxd7 {[%clk 0:01:30.6]} 26. Bxe4
{[%clk 0:00:46.6]} 26... Rxe4 {[%clk 0:01:30.1]} 27. Kd2 {[%clk 0:00:44.3]}
27... b6 {[%clk 0:01:27.1]} 28. g5 {[%clk 0:00:37.4]} 28... hxg5 {[%clk
0:01:25.9]} 29. fxg5 {[%clk 0:00:37.5]} 29... f5 {[%clk 0:01:25.2]} 30. Bf4
{[%clk 0:00:32.7]} 30... Bxf4+ {[%clk 0:01:22]} 31. Rxf4 {[%clk 0:00:33]} 31...
Rae8 {[%clk 0:01:21.2]} 32. Rg2 {[%clk 0:00:24.4]} 32... g6 {[%clk 0:01:10.2]}
33. h6 {[%clk 0:00:21.9]} 33... Bc8 {[%clk 0:00:57.2]} 34. Rgf2 {[%clk
0:00:21.3]} 34... Kh7 {[%clk 0:00:49.6]} 35. Ne5 {[%clk 0:00:21.3]} 35... c5
{[%clk 0:00:46.5]} 36. Rxe4 {[%clk 0:00:21.3]} 36... dxe4 {[%clk 0:00:45.9]} 37.
Ke3 {[%clk 0:00:21.7]} 37... Be6 {[%clk 0:00:41.9]} 38. b3 {[%clk 0:00:16.4]}
38... cxd4+ {[%clk 0:00:37.8]} 39. cxd4 {[%clk 0:00:17]} 39... Rc8 {[%clk
0:00:37.8]} 40. Rd2 {[%clk 0:00:14.3]} 40... Rc3+ {[%clk 0:00:36.3]} 41. Kf4
{[%clk 0:00:15.1]} 41... Bd5 {[%clk 0:00:34.5]} 42. Nd7 {[%clk 0:00:14.3]} 42...
Rf3+ {[%clk 0:00:13.4]} 43. Ke5 {[%clk 0:00:14.6]} 43... Bc6 {[%clk 0:00:12.2]}
44. Nf8+ {[%clk 0:00:12.3]} 44... Kg8 {[%clk 0:00:11.8]} 45. Nxg6 {[%clk
0:00:12.9]} 45... e3 {[%clk 0:00:11.7]} 46. Re2 {[%clk 0:00:10.8]} 46... Bb5
{[%clk 0:00:11.2]} 47. Re1 {[%clk 0:00:09]} 47... e2 {[%clk 0:00:10.9]} 48. Ne7+
{[%clk 0:00:09.1]} 48... Kf7 {[%clk 0:00:10.7]} 49. g6+ {[%clk 0:00:08.7]} 49...
Kxe7 {[%clk 0:00:10.5]} 50. h7 {[%clk 0:00:09.3]} 50... Rf1 {[%clk 0:00:09.3]}
51. h8=Q {[%clk 0:00:07.7]} 51... Rxe1 {[%clk 0:00:09.7]} 52. Qf6+ {[%clk
0:00:08.1]} 52... Kd7 {[%clk 0:00:09.7]} 53. Qe6+ {[%clk 0:00:07.7]} 53... Kc7
{[%clk 0:00:09.9]} 54. Qe7+ {[%clk 0:00:07.8]} 54... Kc6 {[%clk 0:00:09.9]} 55.
Qe8+ {[%clk 0:00:07.3]} 55... Kb7 {[%clk 0:00:09]} 56. Qxb5 {[%clk 0:00:07.9]}
56... f4 {[%clk 0:00:08.6]} 57. g7 {[%clk 0:00:07.9]} 57... f3 {[%clk
0:00:08.9]} 58. g8=Q {[%clk 0:00:08.5]} 58... f2 {[%clk 0:00:09]} 59. Qf7+
{[%clk 0:00:09.2]} 59... Kb8 {[%clk 0:00:08.9]} 60. Qbe8# {[%clk 0:00:09.9]} 1-0

[Event "Early-Titled-Tuesday-Blitz-June-18-2024"]
[Site "Chess.com"]
[Date "2024.06.18"]
[Round "10"]
[White "GatoRojo150"]
[Black "Qvalda"]
[Result "0-1"]
[WhiteElo "2611"]
[BlackElo "2470"]
[TimeControl "180+1"]
[EndTime "9:58:15 PDT"]
[Termination "Qvalda won by checkmate"]

1. e4 {[%clk 0:03:00.9]} 1... e6 {[%clk 0:02:59.8]} 2. d4 {[%clk 0:03:00.8]}
2... d5 {[%clk 0:03:00.1]} 3. Nc3 {[%clk 0:03:01.2]} 3... Nf6 {[%clk 0:02:59.6]}
4. e5 {[%clk 0:03:01.1]} 4... Nfd7 {[%clk 0:03:00]} 5. Nf3 {[%clk 0:03:01.7]}
5... c5 {[%clk 0:03:00.6]} 6. Bg5 {[%clk 0:03:01.9]} 6... Qa5 {[%clk 0:02:45.9]}
7. Bd2 {[%clk 0:03:00.8]} 7... Qb6 {[%clk 0:02:40.1]} 8. Na4 {[%clk 0:02:58.6]}
8... Qc7 {[%clk 0:02:36.9]} 9. Nxc5 {[%clk 0:02:58.3]} 9... Nxc5 {[%clk
0:02:33.3]} 10. dxc5 {[%clk 0:02:58.5]} 10... Bxc5 {[%clk 0:02:32.8]} 11. Bd3
{[%clk 0:02:58.9]} 11... Nc6 {[%clk 0:02:30.1]} 12. Qe2 {[%clk 0:02:50.5]} 12...
Nd4 {[%clk 0:02:29.9]} 13. Nxd4 {[%clk 0:02:40.7]} 13... Bxd4 {[%clk 0:02:30.8]}
14. O-O {[%clk 0:02:24.2]} 14... Bxe5 {[%clk 0:02:26.6]} 15. Bb5+ {[%clk
0:02:22.2]} 15... Kf8 {[%clk 0:02:23.3]} 16. f4 {[%clk 0:02:00.9]} 16... Bxb2
{[%clk 0:02:04.7]} 17. Rab1 {[%clk 0:01:53.2]} 17... Bd4+ {[%clk 0:01:51.5]} 18.
Kh1 {[%clk 0:01:51.6]} 18... a6 {[%clk 0:01:41.2]} 19. Bd3 {[%clk 0:01:48.7]}
19... Bf6 {[%clk 0:01:35.7]} 20. Qh5 {[%clk 0:01:39.3]} 20... g6 {[%clk
0:01:28.1]} 21. Qh6+ {[%clk 0:01:34.2]} 21... Bg7 {[%clk 0:01:28.3]} 22. Qh4
{[%clk 0:01:34.2]} 22... h6 {[%clk 0:01:22.8]} 23. f5 {[%clk 0:01:25.5]} 23...
exf5 {[%clk 0:01:17.5]} 24. Rbe1 {[%clk 0:01:06.3]} 24... Be6 {[%clk 0:01:08.9]}
25. Bf4 {[%clk 0:00:46.9]} 25... Qd7 {[%clk 0:01:01.8]} 26. Qg3 {[%clk 0:00:41]}
26... Kg8 {[%clk 0:00:42.9]} 27. h4 {[%clk 0:00:39.2]} 27... h5 {[%clk
0:00:39.3]} 28. Re2 {[%clk 0:00:36.2]} 28... Kh7 {[%clk 0:00:38.2]} 29. Rfe1
{[%clk 0:00:34]} 29... Bf6 {[%clk 0:00:35.9]} 30. Be5 {[%clk 0:00:30.4]} 30...
Bxe5 {[%clk 0:00:31.2]} 31. Qxe5 {[%clk 0:00:31.3]} 31... Rhe8 {[%clk
0:00:29.9]} 32. Qf4 {[%clk 0:00:29.4]} 32... Rac8 {[%clk 0:00:24]} 33. Re5
{[%clk 0:00:29.1]} 33... Qd8 {[%clk 0:00:15.8]} 34. Kh2 {[%clk 0:00:26.3]} 34...
Qf6 {[%clk 0:00:14.9]} 35. g3 {[%clk 0:00:23.9]} 35... Bd7 {[%clk 0:00:12.6]}
36. Qd4 {[%clk 0:00:20.4]} 36... Rxe5 {[%clk 0:00:12.2]} 37. Rxe5 {[%clk
0:00:20.6]} 37... Re8 {[%clk 0:00:08.7]} 38. Rxd5 {[%clk 0:00:19.2]} 38... Qxd4
{[%clk 0:00:08.3]} 39. Rxd4 {[%clk 0:00:20.1]} 39... Be6 {[%clk 0:00:08.5]} 40.
Rd6 {[%clk 0:00:20]} 40... Bxa2 {[%clk 0:00:06.9]} 41. Rd7 {[%clk 0:00:19.9]}
41... b5 {[%clk 0:00:04]} 42. Ra7 {[%clk 0:00:19.7]} 42... Kg7 {[%clk
0:00:03.4]} 43. Rxa6 {[%clk 0:00:19.7]} 43... Bc4 {[%clk 0:00:04.1]} 44. Rd6
{[%clk 0:00:16.5]} 44... Bxd3 {[%clk 0:00:03.7]} 45. cxd3 {[%clk 0:00:17.4]}
45... Rb8 {[%clk 0:00:03.4]} 46. Rc6 {[%clk 0:00:14.5]} 46... b4 {[%clk
0:00:03.9]} 47. Rc1 {[%clk 0:00:14.8]} 47... b3 {[%clk 0:00:04.6]} 48. Rb1
{[%clk 0:00:15.7]} 48... Kf6 {[%clk 0:00:04.3]} 49. Kg2 {[%clk 0:00:16.1]} 49...
Ke5 {[%clk 0:00:04.8]} 50. Kf3 {[%clk 0:00:17]} 50... Kd4 {[%clk 0:00:05.4]} 51.
Ke2 {[%clk 0:00:16.7]} 51... Kc3 {[%clk 0:00:05.3]} 52. Rc1+ {[%clk 0:00:16.2]}
52... Kb2 {[%clk 0:00:05.6]} 53. Rd1 {[%clk 0:00:16.7]} 53... Re8+ {[%clk
0:00:05.1]} 54. Kd2 {[%clk 0:00:16.7]} 54... Ka2 {[%clk 0:00:04.5]} 55. Kc3
{[%clk 0:00:16.4]} 55... Rc8+ {[%clk 0:00:03.7]} 56. Kb4 {[%clk 0:00:15.3]}
56... b2 {[%clk 0:00:03.8]} 57. Rd2 {[%clk 0:00:14.3]} 57... Ka1 {[%clk
0:00:04.2]} 58. Ka3 {[%clk 0:00:13.2]} 58... b1=Q {[%clk 0:00:03.8]} 59. Rd1
{[%clk 0:00:09]} 59... Ra8# {[%clk 0:00:03.8]} 0-1

[Event "Early-Titled-Tuesday-Blitz-June-18-2024"]
[Site "Chess.com"]
[Date "2024.06.18"]
[Round "10"]
[White "FerAsensio2024"]
[Black "Adrian-thorsen"]
[Result "1-0"]
[WhiteElo "2511"]
[BlackElo "2326"]
[TimeControl "180+1"]
[EndTime "9:58:17 PDT"]
[Termination "FerAsensio2024 won by resignation"]

1. d4 {[%clk 0:03:00.9]} 1... e5 {[%clk 0:02:57.3]} 2. dxe5 {[%clk 0:03:00.6]}
2... Nc6 {[%clk 0:02:57.5]} 3. Nf3 {[%clk 0:03:00.9]} 3... d6 {[%clk 0:02:57.7]}
4. Bg5 {[%clk 0:02:57.5]} 4... Qd7 {[%clk 0:02:55.8]} 5. exd6 {[%clk 0:02:43.6]}
5... Bxd6 {[%clk 0:02:52.3]} 6. e3 {[%clk 0:02:39.4]} 6... Nf6 {[%clk
0:02:50.2]} 7. Nc3 {[%clk 0:02:29.2]} 7... Qe6 {[%clk 0:02:49.2]} 8. Nd4 {[%clk
0:02:21.3]} 8... Nxd4 {[%clk 0:02:48.3]} 9. Qxd4 {[%clk 0:02:21.9]} 9... Bd7
{[%clk 0:02:48.8]} 10. Bxf6 {[%clk 0:02:17]} 10... gxf6 {[%clk 0:02:46.7]} 11.
O-O-O {[%clk 0:02:13.8]} 11... Be5 {[%clk 0:02:41.4]} 12. Qb4 {[%clk 0:01:49.5]}
12... O-O-O {[%clk 0:02:34.9]} 13. Be2 {[%clk 0:01:30]} 13... Bc6 {[%clk
0:02:29.8]} 14. Bf3 {[%clk 0:01:09.6]} 14... Rhg8 {[%clk 0:02:26.3]} 15. Rxd8+
{[%clk 0:01:04.9]} 15... Rxd8 {[%clk 0:02:23.7]} 16. Rd1 {[%clk 0:00:54.7]}
16... Rxd1+ {[%clk 0:02:02.8]} 17. Nxd1 {[%clk 0:00:55.2]} 17... Bxf3 {[%clk
0:02:02.7]} 18. gxf3 {[%clk 0:00:55.9]} 18... Bxh2 {[%clk 0:02:03]} 19. Qh4
{[%clk 0:00:43.4]} 19... Be5 {[%clk 0:01:56.2]} 20. f4 {[%clk 0:00:42.4]} 20...
Bd6 {[%clk 0:01:54.7]} 21. Nc3 {[%clk 0:00:40.5]} 21... Bb4 {[%clk 0:01:50.9]}
22. f5 {[%clk 0:00:30.1]} 22... Qd6 {[%clk 0:01:17.1]} 23. Ne4 {[%clk
0:00:29.7]} 23... Qe5 {[%clk 0:00:57]} 24. f3 {[%clk 0:00:17.9]} 24... Bc5
{[%clk 0:00:28.1]} 25. Kd2 {[%clk 0:00:11.4]} 25... Qxf5 {[%clk 0:00:18.7]} 26.
Qg4 {[%clk 0:00:04.8]} 26... Qxg4 {[%clk 0:00:16.9]} 27. fxg4 {[%clk 0:00:05.7]}
27... Be7 {[%clk 0:00:17.2]} 28. Ng3 {[%clk 0:00:06]} 28... Kd7 {[%clk
0:00:16.7]} 29. Kd3 {[%clk 0:00:06.5]} 29... Ke6 {[%clk 0:00:16.5]} 30. Ke4
{[%clk 0:00:06.5]} 30... c5 {[%clk 0:00:14.4]} 31. Nh5 {[%clk 0:00:06.2]} 31...
Bf8 {[%clk 0:00:14.1]} 32. Nf4+ {[%clk 0:00:05.4]} 32... Kd6 {[%clk 0:00:13.3]}
33. Kf5 {[%clk 0:00:03.6]} 33... Be7 {[%clk 0:00:10.3]} 34. Nh5 {[%clk
0:00:02.8]} 34... b5 {[%clk 0:00:08.4]} 35. e4 {[%clk 0:00:02.4]} 35... a5
{[%clk 0:00:07.6]} 36. Nxf6 {[%clk 0:00:02.9]} 36... Bxf6 {[%clk 0:00:05.4]} 37.
Kxf6 {[%clk 0:00:03.8]} 37... c4 {[%clk 0:00:03.8]} 38. Kxf7 {[%clk 0:00:03.7]}
38... Ke5 {[%clk 0:00:04.2]} 39. Kg7 {[%clk 0:00:04.1]} 39... Kxe4 {[%clk
0:00:04.6]} 40. Kxh7 {[%clk 0:00:02.5]} 40... Kf4 {[%clk 0:00:04.8]} 41. Kg6
{[%clk 0:00:02.9]} 41... Kxg4 {[%clk 0:00:05.1]} 42. Kf6 {[%clk 0:00:03.6]}
42... b4 {[%clk 0:00:04.9]} 43. Ke5 {[%clk 0:00:03.4]} 43... Kf3 {[%clk
0:00:01.9]} 44. Kd4 {[%clk 0:00:03.8]} 44... c3 {[%clk 0:00:01]} 45. bxc3 {[%clk
0:00:03.9]} 45... bxc3 {[%clk 0:00:01.9]} 46. Kxc3 {[%clk 0:00:04.7]} 46... Ke3
{[%clk 0:00:02.2]} 47. Kc4 {[%clk 0:00:03.9]} 47... Kd2 {[%clk 0:00:02.4]} 48.
c3 {[%clk 0:00:02.3]} 48... Kc2 {[%clk 0:00:02.2]} 49. a4 {[%clk 0:00:02.6]}
49... Kb2 {[%clk 0:00:02.2]} 50. Kb5 {[%clk 0:00:01.9]} 50... Kxc3 {[%clk
0:00:02.3]} 51. Kxa5 {[%clk 0:00:02.6]} 51... Kc4 {[%clk 0:00:02.6]} 52. Kb6
{[%clk 0:00:03]} 52... Kd5 {[%clk 0:00:02.3]} 53. a5 {[%clk 0:00:03.4]} 53...
Kd6 {[%clk 0:00:03.2]} 54. a6 {[%clk 0:00:03.4]} 54... Kd7 {[%clk 0:00:04.1]}
55. Kb7 {[%clk 0:00:04]} 1-0